bitfinex/quotes_BTCUSD_20250522
["timestamp","ask_amount","ask_price","bid_price","bid_amount"]
[1747877724641,0.96788445,110060.0,110050.0,0.00214887]
[1747877725506,0.97658372,110060.0,110050.0,0.00214887]
[1747877725984,0.97638372,110060.0,110050.0,0.00214887]
[1747877726769,1.31638372,110060.0,110050.0,0.00214887]
[1747877727176,1.66052221,110060.0,110050.0,0.00214887]
[1747877727389,1.77909663,110060.0,110050.0,0.00214887]
[1747877727580,1.7105477,110060.0,110050.0,0.00214887]
[1747877727782,1.64073346,110060.0,110050.0,0.00214887]
[1747877728007,1.65161019,110060.0,110050.0,0.00214887]
[1747877728347,1.65161019,110060.0,110050.0,0.00014887]
[1747877728556,1.65161019,110060.0,110050.0,0.00114887]
[1747877728757,1.73657727,110060.0,110050.0,0.00114887]
[1747877728960,1.73657727,110060.0,110050.0,0.00014887]
[1747877729624,1.71471808,110060.0,110050.0,0.00014887]
[1747877730290,1.47585867,110060.0,110050.0,0.00014887]
[1747877730495,1.71471808,110060.0,110050.0,0.00014887]
[1747877731138,1.7501753,110060.0,110050.0,0.00114887]
[1747877731375,1.7401753,110060.0,110050.0,0.00114887]
[1747877731814,1.71471808,110060.0,110050.0,0.00114887]
[1747877732006,1.36542675,110060.0,110050.0,0.00114887]
[1747877732235,1.629751,110060.0,110050.0,0.00114887]
[1747877733128,1.0009659,110060.0,110050.0,0.00114887]
[1747877733565,1.3409659,110060.0,110050.0,0.00114887]
[1747877734189,1.0009659,110060.0,110050.0,0.19197121]
[1747877734433,0.97737785,110060.0,110050.0,0.2010579]
[1747877734638,0.71071042,110060.0,110050.0,0.21014434]
[1747877734846,0.90151526,110060.0,110050.0,0.00114887]
[1747877735050,0.88334411,110060.0,110050.0,0.00114887]
[1747877736488,0.01,110060.0,110050.0,1.75131819]
[1747877736711,0.01,110060.0,110050.0,1.33124244]
[1747877736983,0.01,110060.0,110050.0,1.31670159]
[1747877737439,0.19080493,110060.0,110050.0,1.19440869]
[1747877737671,0.31438827,110070.0,110060.0,0.20897616]
[1747877737672,0.15085522,110070.0,110060.0,0.20897616]
[1747877737900,0.15993968,110070.0,110060.0,0.48238578]
[1747877738120,0.16902439,110070.0,110060.0,0.48238578]
[1747877738332,0.17810935,110070.0,110060.0,0.48238578]
[1747877738572,0.17811001,110070.0,110060.0,0.47330041]
[1747877738813,0.32347339,110070.0,110050.0,1.21258141]
[1747877739038,0.2180617,110060.0,110050.0,0.40834887]
[1747877739247,0.8919017,110060.0,110050.0,0.61734393]
[1747877739540,0.8919017,110060.0,110050.0,0.62643021]
[1747877739810,0.001,110060.0,110050.0,1.36574596]
[1747877740025,0.001,110060.0,110050.0,2.05114596]
[1747877740247,0.001,110060.0,110050.0,2.32370596]
[1747877741090,0.0320698,110070.0,110060.0,0.20897592]
[1747877741289,0.81176406,110100.0,110090.0,0.20891896]
[1747877741522,1.10248877,110100.0,110090.0,0.20891896]
[1747877741821,1.11157133,110100.0,110090.0,0.20891896]
[1747877742062,1.29322437,110100.0,110090.0,0.20891905]
[1747877742252,0.43777133,110100.0,110090.0,0.20891905]
[1747877742436,0.71033133,110100.0,110090.0,0.21800194]
[1747877742645,0.71033133,110100.0,110090.0,0.21815081]
[1747877743111,0.89198437,110100.0,110090.0,0.00014887]
[1747877743336,0.86473808,110100.0,110090.0,0.00014887]
[1747877744325,0.95877165,110100.0,110090.0,0.00014887]
[1747877745150,0.96723054,110100.0,110090.0,0.00014887]
[1747877745803,0.18166954,110090.0,110070.0,0.21916696]
[1747877746015,0.86445034,110080.0,110070.0,0.55008184]
[1747877746217,0.86445034,110080.0,110070.0,0.55916688]
[1747877746421,0.86445034,110080.0,110070.0,0.74995439]
[1747877747344,0.87318439,110080.0,110070.0,0.53987255]
[1747877747683,0.87318439,110080.0,110070.0,0.53078759]
[1747877747894,0.87318439,110080.0,110070.0,0.54387255]
[1747877748078,0.87318439,110080.0,110070.0,0.55295718]
[1747877748219,0.69184777,110080.0,110070.0,0.82236597]
[1747877748418,0.71909983,110080.0,110070.0,0.81328143]
[1747877748631,0.89170232,110080.0,110070.0,0.81728159]
[1747877749128,0.88261852,110080.0,110070.0,0.81728159]
[1747877749291,0.86445034,110080.0,110070.0,0.004]
[1747877753571,0.86445034,110080.0,110070.0,0.01308512]
[1747877755663,0.86445034,110080.0,110070.0,0.19478767]
[1747877756188,0.67368,110080.0,110070.0,0.48636629]
[1747877756406,0.57401304,110100.0,110090.0,0.2089188]
[1747877756407,0.8164448,110100.0,110090.0,0.2089188]
[1747877756631,0.19254926,110120.0,110110.0,0.18163654]
[1747877756844,0.19981759,110100.0,110090.0,0.18166954]
[1747877757044,0.46325552,110100.0,110090.0,0.18166954]
[1747877757286,0.29068513,110100.0,110090.0,0.20891913]
[1747877757511,0.29976769,110100.0,110090.0,0.42808395]
[1747877757700,0.29976769,110100.0,110090.0,0.43716684]
[1747877757950,0.48142073,110100.0,110090.0,0.00014898]
[1747877758132,0.48142073,110100.0,110090.0,0.19090166]
[1747877758338,0.48142073,110100.0,110090.0,0.19998505]
[1747877758544,0.46325569,110100.0,110090.0,0.00014898]
[1747877759535,0.55728926,110100.0,110090.0,0.00014898]
[1747877760026,0.56574093,110100.0,110090.0,0.00014898]
[1747877760238,0.00908364,110080.0,110070.0,0.7579791]
[1747877760453,0.28160364,110080.0,110070.0,0.75812812]
[1747877760664,0.49962555,110080.0,110070.0,0.76721374]
[1747877760878,0.29977149,110080.0,110070.0,0.77629828]
[1747877761084,0.29068752,110080.0,110070.0,0.77629828]
[1747877761894,0.29977149,110080.0,110070.0,0.77629828]
[1747877762093,0.29068752,110080.0,110070.0,0.77629828]
[1747877762306,0.28160372,110080.0,110070.0,0.77629828]
[1747877762568,0.18170002,110120.0,110100.0,0.0181648]
[1747877762784,0.7147258,110110.0,110100.0,0.20890024]
[1747877763008,0.87819977,110110.0,110090.0,0.46415949]
[1747877763222,0.02724645,110100.0,110090.0,0.47324321]
[1747877763375,0.02724645,110100.0,110090.0,0.68332505]
[1747877763615,0.03632877,110100.0,110090.0,0.68332505]
[1747877764011,0.04541125,110100.0,110090.0,0.68332505]
[1747877764685,0.04541191,110100.0,110090.0,0.68332505]
[1747877765410,0.22706545,110100.0,110090.0,0.66515902]
[1747877765570,0.22706545,110100.0,110090.0,0.41900073]
[1747877765782,0.22806545,110100.0,110090.0,0.41900073]
[1747877766000,0.22806545,110100.0,110090.0,0.21008184]
[1747877766001,0.20929705,110100.0,110090.0,0.21008184]
[1747877766200,0.30333062,110100.0,110090.0,0.21008184]
[1747877766588,6.03073759,110100.0,110090.0,0.21008184]
[1747877766801,0.53985405,110080.0,110070.0,0.00014902]
[1747877767052,1.96893187,110080.0,110070.0,0.00014902]
[1747877767268,1.82250302,110080.0,110070.0,0.00014902]
[1747877767696,2.08682727,110080.0,110070.0,0.00014902]
[1747877767915,1.9827937,110080.0,110070.0,0.00014902]
[1747877768124,1.74800749,110080.0,110070.0,0.00014902]
[1747877768347,1.73800749,110080.0,110070.0,0.00014902]
[1747877768607,1.05964749,110080.0,110070.0,0.00014902]
[1747877768830,1.04678566,110080.0,110070.0,0.00014902]
[1747877769046,1.72514566,110080.0,110070.0,0.00014902]
[1747877769480,1.72414566,110080.0,110070.0,0.00014902]
[1747877769906,1.05778566,110080.0,110070.0,0.00114902]
[1747877770139,0.71778566,110080.0,110070.0,0.00114902]
[1747877770595,0.31314159,110080.0,110070.0,0.47443019]
[1747877770810,0.50391226,110080.0,110070.0,0.00114902]
[1747877771029,0.50391226,110080.0,110070.0,0.01023406]
[1747877771507,0.46329017,110080.0,110070.0,0.00014902]
[1747877771728,0.55732374,110080.0,110070.0,0.00014902]
[1747877771939,0.65235731,110080.0,110070.0,0.00014902]
[1747877772466,0.65135731,110080.0,110070.0,0.00014902]
[1747877772880,0.91568156,110080.0,110070.0,0.00014902]
[1747877773071,0.82164799,110080.0,110070.0,0.00014902]
[1747877773559,0.83264799,110080.0,110070.0,0.00114902]
[1747877774008,0.56832374,110080.0,110070.0,0.00114902]
[1747877774431,0.57700925,110080.0,110070.0,0.00114902]
[1747877774611,0.30448925,110080.0,110070.0,0.00114902]
[1747877774824,0.57700925,110080.0,110070.0,0.00114902]
[1747877775040,0.48297568,110080.0,110070.0,0.19193653]
[1747877775245,0.48297568,110080.0,110070.0,0.00114902]
[1747877775457,0.48297568,110080.0,110070.0,0.40934902]
[1747877775458,0.47429017,110080.0,110070.0,0.40934902]
[1747877775889,0.55732374,110080.0,110070.0,0.40834902]
[1747877776317,0.55732374,110080.0,110070.0,0.40934902]
[1747877776522,0.84364799,110080.0,110070.0,0.40934902]
[1747877778128,0.30680374,110080.0,110070.0,0.40934902]
[1747877778337,0.57932374,110080.0,110070.0,0.40934902]
[1747877778719,0.57685849,110080.0,110070.0,0.40834902]
[1747877778905,0.58885849,110080.0,110070.0,0.40934902]
[1747877779575,0.85318274,110080.0,110070.0,0.40934902]
[1747877779791,1.19318274,110080.0,110070.0,0.00114902]
[1747877780002,1.20318274,110080.0,110070.0,0.00114902]
[1747877780637,1.21772359,110080.0,110070.0,0.00114902]
[1747877781176,6.54204784,110080.0,110070.0,0.00114902]
[1747877781401,6.66151934,110080.0,110070.0,0.00114902]
[1747877781626,6.64978626,110080.0,110070.0,0.00114902]
[1747877782404,6.65521801,110080.0,110070.0,0.00114902]
[1747877782584,6.80070299,110080.0,110070.0,0.00114902]
[1747877782802,6.80435593,110080.0,110070.0,0.00114902]
[1747877783224,6.80435593,110080.0,110070.0,0.00014902]
[1747877783225,7.39235593,110080.0,110070.0,0.00014902]
[1747877783644,7.41535593,110080.0,110070.0,0.00114902]
[1747877784003,0.23443123,110060.0,110050.0,0.001]
[1747877784216,1.66930905,110060.0,110050.0,0.00014907]
[1747877784414,1.39674905,110060.0,110050.0,0.00014907]
[1747877784615,1.53193445,110060.0,110050.0,0.00014907]
[1747877784825,1.7962587,110060.0,110050.0,0.00014907]
[1747877785037,1.7862587,110060.0,110050.0,0.00014907]
[1747877785303,1.7862987,110060.0,110050.0,0.00014907]
[1747877785482,1.8042987,110060.0,110050.0,0.00014907]
[1747877785684,1.7942987,110060.0,110050.0,0.00014907]
[1747877785859,1.8042987,110060.0,110050.0,0.00014907]
[1747877786032,1.7942987,110060.0,110050.0,0.00014907]
[1747877786304,1.8042987,110060.0,110050.0,0.00014907]
[1747877786663,1.87758235,110060.0,110050.0,0.00014907]
[1747877787272,1.88232644,110060.0,110050.0,0.00014907]
[1747877787930,1.88240644,110060.0,110050.0,0.00014907]
[1747877788485,1.87479854,110060.0,110050.0,0.00014907]
[1747877788881,2.13912279,110060.0,110050.0,0.00014907]
[1747877789519,2.12828646,110060.0,110050.0,0.00014907]
[1747877791145,2.15282731,110060.0,110050.0,0.00014907]
[1747877792508,2.16282731,110060.0,110050.0,0.00014907]
[1747877792736,2.26769721,110060.0,110050.0,0.00014907]
[1747877794012,7.22366364,110060.0,110050.0,0.00014907]
[1747877795148,1.60219854,110060.0,110050.0,0.00014907]
[1747877795359,1.87479854,110060.0,110050.0,0.00014907]
[1747877795977,1.26219854,110060.0,110050.0,0.00014907]
[1747877796198,1.0757749,110060.0,110050.0,0.18188464]
[1747877796456,1.24525571,110060.0,110050.0,0.47346822]
[1747877796697,1.45423163,110060.0,110050.0,0.20005777]
[1747877796923,1.31317776,110060.0,110050.0,0.19097125]
[1747877797336,1.29365583,110060.0,110050.0,0.20005769]
[1747877797546,0.02725677,110060.0,110050.0,0.47346814]
[1747877797760,0.29989686,110060.0,110050.0,0.47346814]
[1747877797967,0.30089686,110060.0,110050.0,0.47546814]
[1747877798174,0.30089652,110060.0,110050.0,0.47546814]
[1747877798377,0.49170153,110060.0,110050.0,0.20205769]
[1747877798577,0.47353071,110060.0,110050.0,0.01123584]
[1747877798782,0.46444501,110060.0,110050.0,0.01123584]
[1747877799489,0.46444501,110060.0,110050.0,0.22347017]
[1747877799692,0.46444501,110060.0,110050.0,0.21114471]
[1747877800968,0.19180501,110060.0,110050.0,0.22023124]
[1747877801414,0.19180501,110060.0,110050.0,0.21114471]
[1747877801627,0.18271906,110060.0,110050.0,0.00214907]
[1747877801853,0.31319501,110060.0,110050.0,0.00214907]
[1747877802079,0.88107688,110060.0,110050.0,0.00214907]
[1747877802303,1.95779688,110060.0,110050.0,0.00214907]
[1747877802524,1.98233773,110060.0,110050.0,0.00214907]
[1747877802959,1.99233773,110060.0,110050.0,0.00214907]
[1747877803143,2.0863713,110060.0,110050.0,0.00214907]
[1747877803374,0.01817627,110030.0,110020.0,0.06]
[1747877803594,1.58250269,110030.0,110020.0,0.06049706]
[1747877804258,1.60704354,110030.0,110020.0,0.06049706]
[1747877804685,1.70107711,110030.0,110020.0,0.06049706]
[1747877804911,1.60704354,110030.0,110020.0,0.06049706]
[1747877805171,1.60804354,110030.0,110020.0,0.06249706]
[1747877805621,6.66704354,110030.0,110020.0,0.06049706]
[1747877806224,6.67573098,110030.0,110020.0,0.06049706]
[1747877806663,6.68481587,110030.0,110020.0,0.06049706]
[1747877806906,6.77884944,110030.0,110020.0,0.06049706]
[1747877807191,6.79984944,110030.0,110020.0,0.06049706]
[1747877807406,6.70581587,110030.0,110020.0,0.06049706]
[1747877807837,6.98581587,110030.0,110020.0,0.06049706]
[1747877808488,0.46436002,109980.0,109970.0,0.00045464]
[1747877808705,0.97838934,109980.0,109970.0,0.00045464]
[1747877809770,0.97843903,109980.0,109970.0,0.00045464]
[1747877810587,0.97943903,109980.0,109970.0,0.00045464]
[1747877811690,0.97843903,109980.0,109970.0,0.00045464]
[1747877812127,0.98743903,109980.0,109970.0,0.00045464]
[1747877813303,0.97843903,109980.0,109970.0,0.00045464]
[1747877813691,0.97943903,109980.0,109970.0,0.00045464]
[1747877815966,1.0196082,109980.0,109970.0,0.00045464]
[1747877816376,0.97943903,109980.0,109970.0,0.00045464]
[1747877818131,0.70679903,109980.0,109970.0,0.00045464]
[1747877818344,0.97955903,109980.0,109970.0,0.00045464]
[1747877819739,0.97855903,109980.0,109970.0,0.00045464]
[1747877820177,0.98755903,109980.0,109970.0,0.00045464]
[1747877820392,1.03796049,109980.0,109970.0,0.00045464]
[1747877820640,0.98755903,109980.0,109970.0,0.00045464]
[1747877820858,1.32755903,109980.0,109970.0,0.00045464]
[1747877821073,1.66245238,109980.0,109970.0,0.00045464]
[1747877821483,1.67699323,109980.0,109970.0,0.00045464]
[1747877821698,1.68699323,109980.0,109970.0,0.00045464]
[1747877821910,6.86491531,109980.0,109970.0,0.00045464]
[1747877822149,6.91799803,109980.0,109970.0,0.00045464]
[1747877822372,0.20010855,109940.0,109930.0,0.02]
[1747877822577,1.39538212,109940.0,109930.0,0.02]
[1747877823663,1.39587874,109940.0,109930.0,0.02]
[1747877824261,1.39587874,109940.0,109930.0,0.02909653]
[1747877824487,0.68839874,109940.0,109930.0,0.20193395]
[1747877824671,1.21504134,109940.0,109930.0,0.22922287]
[1747877824837,1.22413654,109940.0,109930.0,0.22922287]
[1747877825058,1.23323232,109940.0,109930.0,0.22922287]
[1747877825264,1.10281662,109940.0,109930.0,0.56411622]
[1747877825900,1.10281662,109940.0,109930.0,0.22922287]
[1747877826797,1.32111549,109940.0,109930.0,0.02]
[1747877827047,1.30292517,109940.0,109930.0,0.02]
[1747877827263,1.39695874,109940.0,109930.0,0.02]
[1747877827701,1.49099231,109940.0,109930.0,0.02]
[1747877827946,2.16588566,109940.0,109930.0,0.02]
[1747877828150,1.83099231,109940.0,109930.0,0.02]
[1747877829019,1.73695874,109940.0,109930.0,0.02]
[1747877829245,1.74599127,109940.0,109930.0,0.02]
[1747877829457,2.11542547,109940.0,109930.0,0.02]
[1747877829686,2.11442547,109940.0,109930.0,0.02]
[1747877829906,1.77853212,109940.0,109930.0,0.02]
[1747877830321,1.78968884,109940.0,109930.0,0.02]
[1747877830537,1.79443293,109940.0,109930.0,0.02]
[1747877831007,0.69311293,109940.0,109930.0,0.02]
[1747877831442,1.01900628,109940.0,109930.0,0.02]
[1747877832234,2.13064628,109940.0,109930.0,0.02]
[1747877832845,0.01819711,109900.0,109890.0,0.21839458]
[1747877833136,0.73605595,109900.0,109890.0,0.21839458]
[1747877833343,0.28197843,109900.0,109890.0,0.21839458]
[1747877833725,0.29107711,109900.0,109890.0,0.21839458]
[1747877833932,0.27288,109900.0,109890.0,0.21839458]
[1747877834148,0.28247491,109900.0,109890.0,0.21839458]
[1747877834357,0.00909926,109890.0,109880.0,0.55352546]
[1747877834892,0.01819868,109890.0,109880.0,0.55352546]
[1747877835103,0.0181986,109890.0,109880.0,0.55352546]
[1747877835532,0.03639803,109890.0,109880.0,0.57105858]
[1747877835745,0.20929953,109890.0,109880.0,0.6211542]
[1747877835945,0.20929953,109890.0,109880.0,0.63025478]
[1747877836153,0.1911001,109890.0,109880.0,0.43003679]
[1747877836333,0.1921001,109890.0,109880.0,0.43003679]
[1747877837411,0.18300018,109890.0,109880.0,0.41663237]
[1747877838530,0.18300018,109890.0,109880.0,0.42573312]
[1747877838743,0.001,109890.0,109880.0,0.62072956]
[1747877838992,0.01919877,109890.0,109880.0,0.95241159]
[1747877839224,0.001,109890.0,109880.0,0.95241159]
[1747877839459,0.27392,109890.0,109880.0,1.30579974]
[1747877839896,0.001,109890.0,109880.0,1.30579974]
[1747877840528,0.73667242,109900.0,109890.0,0.20929919]
[1747877840731,0.74577143,109900.0,109890.0,0.20929919]
[1747877840940,0.02729853,109890.0,109880.0,0.96180531]
[1747877841156,0.02729844,109890.0,109880.0,0.96180531]
[1747877841385,0.01819877,109890.0,109880.0,0.96180531]
[1747877841608,0.71847524,109900.0,109890.0,0.20929945]
[1747877841832,0.71847482,109900.0,109890.0,0.21839887]
[1747877842046,0.73667259,109900.0,109890.0,0.21839887]
[1747877842548,0.73767259,109900.0,109890.0,0.22239887]
[1747877843277,0.91965679,109900.0,109890.0,0.0131]
[1747877843428,0.73767317,109900.0,109890.0,0.22239929]
[1747877843845,0.72857408,109900.0,109890.0,0.23149871]
[1747877844322,0.73767251,109900.0,109890.0,0.23149871]
[1747877844535,0.72857358,109900.0,109890.0,0.23149871]
[1747877844678,0.73767251,109900.0,109890.0,0.23149871]
[1747877844919,0.73767251,109900.0,109890.0,0.09649871]
[1747877845139,0.74677152,109900.0,109890.0,0.10559871]
[1747877846238,0.73767251,109900.0,109890.0,0.10559871]
[1747877846473,0.74677152,109900.0,109890.0,0.10559871]
[1747877846754,0.72857358,109900.0,109890.0,0.10559871]
[1747877847024,0.43745631,109900.0,109890.0,0.78096379]
[1747877847218,0.00149631,109900.0,109890.0,1.22726334]
[1747877848064,0.00149631,109900.0,109890.0,1.11868892]
[1747877850021,0.00149631,109900.0,109890.0,1.21272249]
[1747877850462,0.00149631,109900.0,109890.0,1.89712249]
[1747877851179,0.00149631,109900.0,109890.0,1.91166334]
[1747877851608,0.00149631,109900.0,109890.0,1.98806481]
[1747877851833,0.27292,109910.0,109900.0,0.94322816]
[1747877852047,0.70464,109920.0,109910.0,0.20926112]
[1747877852255,0.70464,109920.0,109910.0,0.47415133]
[1747877852483,0.71373694,109920.0,109910.0,0.20926112]
[1747877853275,0.71673694,109920.0,109910.0,0.21026112]
[1747877853483,0.90778529,109920.0,109910.0,0.001]
[1747877853897,1.00181886,109920.0,109910.0,0.001]
[1747877856292,1.01052252,109920.0,109910.0,0.001]
[1747877856513,1.88030294,109920.0,109910.0,0.001]
[1747877856730,1.44455609,109920.0,109910.0,0.001]
[1747877856975,1.98887736,109920.0,109910.0,0.001]
[1747877857192,1.72398715,109920.0,109910.0,0.001]
[1747877857415,1.62995358,109920.0,109910.0,0.001]
[1747877857888,1.37951182,109920.0,109910.0,0.001]
[1747877858103,1.62986118,109920.0,109910.0,0.001]
[1747877858551,0.19106524,109910.0,109900.0,0.0001493]
[1747877858760,0.28509881,109910.0,109900.0,0.0001493]
[1747877859936,0.64402259,109910.0,109900.0,0.0001493]
[1747877860153,0.28609881,109910.0,109900.0,0.0001493]
[1747877860372,0.30568869,109910.0,109900.0,0.0001493]
[1747877860973,0.69868869,109910.0,109900.0,0.0001493]
[1747877861391,0.95269268,109910.0,109900.0,0.0001493]
[1747877861743,0.68780247,109910.0,109900.0,0.0001493]
[1747877862371,1.65741268,109910.0,109900.0,0.0001493]
[1747877862777,1.40340869,109910.0,109900.0,0.0001493]
[1747877865696,1.13044869,109910.0,109900.0,0.0001493]
[1747877865904,1.40340869,109910.0,109900.0,0.0001493]
[1747877866559,2.11687332,109910.0,109900.0,0.0001493]
[1747877866776,2.0082989,109910.0,109900.0,0.0001493]
[1747877868067,1.74240869,109910.0,109900.0,0.0001493]
[1747877868286,1.75440869,109910.0,109900.0,0.0001493]
[1747877868510,2.0192989,109910.0,109900.0,0.0001493]
[1747877869169,2.11333247,109910.0,109900.0,0.0001493]
[1747877869669,2.0192989,109910.0,109900.0,0.0001493]
[1747877870541,2.03374735,109910.0,109900.0,0.0001493]
[1747877871895,1.76885714,109910.0,109900.0,0.0001493]
[1747877873591,2.03374735,109910.0,109900.0,0.0001493]
[1747877873831,2.0192989,109910.0,109900.0,0.0001493]
[1747877874051,1.48144869,109910.0,109900.0,0.0001493]
[1747877874262,1.75444869,109910.0,109900.0,0.0001493]
[1747877875231,1.78355555,109910.0,109900.0,0.0001493]
[1747877875418,1.75444869,109910.0,109900.0,0.0001493]
[1747877880414,2.0193389,109910.0,109900.0,0.0001493]
[1747877881088,1.75444869,109910.0,109900.0,0.0001493]
[1747877884579,2.0193389,109910.0,109900.0,0.0001493]
[1747877884790,1.76376826,109910.0,109900.0,0.0001493]
[1747877885656,1.76733049,109910.0,109900.0,0.0001493]
[1747877886516,1.86136406,109910.0,109900.0,0.0001493]
[1747877886740,2.12625427,109910.0,109900.0,0.0001493]
[1747877886963,1.86136406,109910.0,109900.0,0.0001493]
[1747877887400,2.12625427,109910.0,109900.0,0.0001493]
[1747877887831,2.0322207,109910.0,109900.0,0.0001493]
[1747877888059,1.76733049,109910.0,109900.0,0.0001493]
[1747877888290,2.0322207,109910.0,109900.0,0.0001493]
[1747877888787,2.07230464,109910.0,109900.0,0.0001493]
[1747877889246,2.04676155,109910.0,109900.0,0.0001493]
[1747877889491,2.1663466,109910.0,109900.0,0.0001493]
[1747877890362,1.80742282,109910.0,109900.0,0.0001493]
[1747877890600,2.05777218,109910.0,109900.0,0.0001493]
[1747877891496,2.07231303,109910.0,109900.0,0.0001493]
[1747877893307,2.07216648,109910.0,109900.0,0.0001493]
[1747877895303,2.14216648,109910.0,109900.0,0.0001493]
[1747877895583,7.28620005,109910.0,109900.0,0.0001493]
[1747877896509,7.27420005,109910.0,109900.0,0.0001493]
[1747877896934,1.58227627,109910.0,109900.0,0.0001493]
[1747877897154,1.83073542,109910.0,109900.0,0.0001493]
[1747877897365,1.81628697,109910.0,109900.0,0.0001493]
[1747877897584,1.83828697,109910.0,109900.0,0.0001493]
[1747877898850,2.10317718,109910.0,109900.0,0.0001493]
[1747877899060,2.17521075,109910.0,109900.0,0.0001493]
[1747877899262,2.18721075,109910.0,109900.0,0.0001493]
[1747877899470,1.82828697,109910.0,109900.0,0.0001493]
[1747877899914,1.81628697,109910.0,109900.0,0.0001493]
[1747877900374,1.83728697,109910.0,109900.0,0.0001493]
[1747877900604,1.85183515,109910.0,109900.0,0.0001493]
[1747877901913,2.11672536,109910.0,109900.0,0.0001493]
[1747877902132,2.22529978,109910.0,109900.0,0.0001493]
[1747877902788,7.27529978,109910.0,109900.0,0.0001493]
[1747877903220,7.01040957,109910.0,109900.0,0.0001493]
[1747877903440,7.27529978,109910.0,109900.0,0.0001493]
[1747877903631,7.18126621,109910.0,109900.0,0.0001493]
[1747877904685,6.916376,109910.0,109900.0,0.0001493]
[1747877904890,7.18126621,109910.0,109900.0,0.0001493]
[1747877905311,7.16671803,109910.0,109900.0,0.0001493]
[1747877906491,7.26229803,109910.0,109900.0,0.0001493]
[1747877906669,2.11671803,109910.0,109900.0,0.0001493]
[1747877908141,2.14878783,109910.0,109900.0,0.0001493]
[1747877908728,2.16333511,109910.0,109900.0,0.0001493]
[1747877908930,2.25736868,109910.0,109900.0,0.0001493]
[1747877909135,2.16333511,109910.0,109900.0,0.0001493]
[1747877910834,0.18201674,109880.0,109860.0,0.24697327]
[1747877911002,0.91965737,109870.0,109860.0,0.42951946]
[1747877911207,0.92875903,109870.0,109860.0,0.43862187]
[1747877911405,0.91965737,109870.0,109860.0,0.72171647]
[1747877911609,0.92875903,109870.0,109860.0,0.44772419]
[1747877911868,0.92875903,109870.0,109860.0,0.45682643]
[1747877912182,0.92975903,109870.0,109860.0,0.45682643]
[1747877914110,0.92975903,109870.0,109860.0,0.44772419]
[1747877914308,0.92065787,109870.0,109860.0,0.24746958]
[1747877914560,0.92065787,109870.0,109860.0,0.26567431]
[1747877915152,0.92065787,109870.0,109860.0,0.25657199]
[1747877915525,0.92065787,109870.0,109860.0,0.23836709]
[1747877915777,0.91155646,109870.0,109860.0,0.23836709]
[1747877916883,1.27967345,109870.0,109860.0,0.23836709]
[1747877917108,1.02351443,109870.0,109860.0,0.23836709]
[1747877917773,1.28840464,109870.0,109860.0,0.23836709]
[1747877917999,1.62740464,109870.0,109860.0,0.00049631]
[1747877918432,1.62840464,109870.0,109860.0,0.00049631]
[1747877919106,1.62740464,109870.0,109860.0,0.00049631]
[1747877920191,1.02355443,109870.0,109860.0,0.00049631]
[1747877920450,1.28844464,109870.0,109860.0,0.00049631]
[1747877920673,1.02355443,109870.0,109860.0,0.00049631]
[1747877920888,1.28844464,109870.0,109860.0,0.00049631]
[1747877926704,0.30400122,109870.0,109860.0,0.00049631]
[1747877926910,1.02543199,109870.0,109860.0,0.00049631]
[1747877927539,1.2903222,109870.0,109860.0,0.00049631]
[1747877927776,1.37732107,109870.0,109860.0,0.00049631]
[1747877928229,1.3664103,109870.0,109860.0,0.00049631]
[1747877929119,1.46044387,109870.0,109860.0,0.00049631]
[1747877929325,1.3664103,109870.0,109860.0,0.00049631]
[1747877929804,1.37732107,109870.0,109860.0,0.00049631]
[1747877931091,1.3664103,109870.0,109860.0,0.00049631]
[1747877931507,1.10152009,109870.0,109860.0,0.00049631]
[1747877931714,1.3664103,109870.0,109860.0,0.00049631]
[1747877932672,1.38095115,109870.0,109860.0,0.00049631]
[1747877933711,1.39086192,109870.0,109860.0,0.00049631]
[1747877934119,1.40186192,109870.0,109860.0,0.00049631]
[1747877935116,1.13697171,109870.0,109860.0,0.00049631]
[1747877935320,1.40186192,109870.0,109860.0,0.00049631]
[1747877935536,1.39095115,109870.0,109860.0,0.00049631]
[1747877936441,1.73095115,109870.0,109860.0,0.00049631]
[1747877936687,1.82498472,109870.0,109860.0,0.00049631]
[1747877936877,6.87498472,109870.0,109860.0,0.00049631]
[1747877937285,6.89498472,109870.0,109860.0,0.00049631]
[1747877937509,7.17498472,109870.0,109860.0,0.00049631]
[1747877937722,7.47498472,109870.0,109860.0,0.00049631]
[1747877937933,7.47498472,109870.0,109830.0,0.01]
[1747877937934,0.46518094,109840.0,109830.0,0.01]
[1747877938165,1.65441451,109840.0,109830.0,0.01014934]
[1747877940297,1.39923022,109840.0,109830.0,0.01014934]
[1747877940717,1.66412043,109840.0,109830.0,0.01014934]
[1747877941030,1.66312043,109840.0,109830.0,0.01014934]
[1747877941253,1.68412043,109840.0,109830.0,0.01014934]
[1747877942422,1.14611022,109840.0,109830.0,0.01014934]
[1747877942623,1.41923022,109840.0,109830.0,0.01014934]
[1747877943625,1.4105243,109840.0,109830.0,0.01014934]
[1747877943849,1.1374443,109840.0,109830.0,0.01014934]
[1747877944079,1.4106043,109840.0,109830.0,0.01014934]
[1747877945488,1.67549451,109840.0,109830.0,0.01014934]
[1747877945771,1.69003536,109840.0,109830.0,0.01014934]
[1747877946674,1.78406893,109840.0,109830.0,0.01014934]
[1747877946908,2.13277958,109840.0,109830.0,0.01014934]
[1747877947139,1.86788937,109840.0,109830.0,0.01014934]
[1747877947367,2.03874601,109840.0,109830.0,0.01014934]
[1747877948063,7.35363622,109840.0,109830.0,0.01014934]
[1747877948700,7.35363622,109840.0,109810.0,0.02834093]
[1747877948701,0.55032722,109820.0,109810.0,0.02834093]
[1747877948939,0.63436079,109820.0,109810.0,0.02834093]
[1747877949154,1.02251428,109820.0,109810.0,0.02834093]
[1747877950036,1.03122493,109820.0,109810.0,0.02834093]
[1747877950250,1.05322493,109820.0,109810.0,0.02834093]
[1747877950473,1.39076408,109820.0,109810.0,0.02834093]
[1747877951340,1.40530493,109820.0,109810.0,0.02834093]
[1747877951557,1.13170407,109820.0,109810.0,0.02834093]
[1747877951775,1.39659428,109820.0,109810.0,0.02834093]
[1747877951993,1.13170407,109820.0,109810.0,0.02834093]
[1747877952221,1.39659428,109820.0,109810.0,0.02834093]
[1747877953604,1.73659428,109820.0,109810.0,0.02834093]
[1747877954049,1.19749008,109820.0,109810.0,0.02834093]
[1747877954261,0.41657008,109820.0,109810.0,0.02834093]
[1747877954472,1.13225008,109820.0,109810.0,0.02834093]
[1747877954685,1.14076322,109820.0,109810.0,0.02834093]
[1747877955132,1.13165783,109820.0,109810.0,0.02834093]
[1747877956105,1.10965783,109820.0,109810.0,0.02834093]
[1747877956482,1.12065783,109820.0,109810.0,0.02834093]
[1747877957519,1.12065783,109820.0,109810.0,0.02819438]
[1747877957831,1.17065783,109820.0,109810.0,0.02819438]
[1747877958054,1.18455318,109820.0,109810.0,0.02819438]
[1747877958428,1.19325698,109820.0,109810.0,0.02819438]
[1747877959899,1.19325698,109820.0,109810.0,0.0328353]
[1747877960309,1.19325698,109820.0,109810.0,0.02819438]
[1747877961496,1.18455318,109820.0,109810.0,0.02819438]